[Event "Azerbaijan-ch 1st League 2025"]
[Site "Baku"]
[Date "2025.01.11"]
[Round "6.5"]
[White "Garayev, Kanan"]
[Black "Orujov, Farid"]
[Result "1-0"]
[Annotator "RC"]
[ECO "E05"]
[WhiteElo "2340"]
[BlackElo "2301"]
[PlyCount "119"]
[EventDate "2025.01.05"]
[EventType "swiss"]
[EventCountry "AZE"]
[SourceTitle "playchess.com"]
[Source "ChessBase"]
[SourceQuality "1"]
[TimeControl "40/5400+30:1800+30"]

1. d4 {[%emt 0:00:16]} Nf6 {[%emt 0:01:57]} 2. c4 {[%emt 0:00:25]} e6 {[%emt 0:00:03]} 3. g3 {[%emt 0:00:06]} d5 {[%emt 0:00:04]} 4. Bg2 {[%emt 0:00:03]} Be7 {[%emt 0:00:04]} 5. Nf3 {[%emt 0:00:03]} O-O {[%emt 0:00:11]} 6. O-O {[%emt 0:00:20]} dxc4 {[%emt 0:00:05]} 7. Qc2 {[%emt 0:00:03]} a6 {[%emt 0:00:03]} 8. a4 {[%emt 0:00:03]} Nc6 {[%emt 0:00:04]} 9. Qxc4 {[%emt 0:00:05]} Na5 {[%emt 0:00:03]} 10. Qc2 {[%emt 0:00:04]} Nc6 {[%emt 0:00:03]} 11. Qc4 {[%emt 0:00:24]} Na5 {[%emt 0:00:08]} 12. Qc2 {[%emt 0:00:23]} Nc6 {[%emt 0:00:09]} 13. e3 {[%emt 0:03:12]} Nb4 {[%emt 0:00:31]} 14. Qb3 {[%emt 0:01:40]} Qd5 {[%emt 0:01:13]} 15. Nbd2 {[%emt 0:00:52]} c5 {[%emt 0:03:45]} 16. Ne5 {[%emt 0:05:26]} Qxb3 {[%emt 0:04:18]} 17. Nxb3 {[%emt 0:00:19]} cxd4 {[%emt 0:00:09]} 18. Nxd4 {[%emt 0:00:19]} Nd7 {[%emt 0:12:56]} 19. Nc4 {[%emt 0:06:14]} e5 {[%emt 0:00:49]} 20. Nf5 {[%emt 0:00:47]} Bc5 {[%emt 0:03:47]} 21. Nfd6 {[%emt 0:03:06]} Rb8 {[%emt 0:09:36]} 22. Nxc8 {[%emt 0:04:32]} Rfxc8 {[%emt 0:02:46]} 23. Bh3 {[%emt 0:02:49]} Rd8 {[%emt 0:01:24]} 24. Bd2 {[%emt 0:03:51]} f6 {[%emt 0:22:34]} 25. Rfd1 {[%emt 0:03:05]} Nf8 {[%emt 0:01:27]} 26. Bxb4 {[%emt 0:03:48]} Bxb4 {[%emt 0:00:55]} 27. Nb6 {[%emt 0:00:06]} Kf7 {[%emt 0:05:34]} 28. Nd5 {[%emt 0:02:21]} Bd6 {[%emt 0:00:45]} 29. Rac1 {[%emt 0:01:48]} g6 {[%emt 0:02:27]} 30. e4 {[%emt 0:07:54]} Ne6 {[%emt 0:02:38]} 31. Bxe6+ {[%emt 0:01:57]} Kxe6 {[%emt 0:02:18]} 32. Rc3 {[%emt 0:01:58]} f5 {[%emt 0:03:38]} 33. f3 {[%emt 0:00:44]} Rbc8 {[%emt 0:01:23]} 34. Rdc1 {[%emt 0:00:29]} Rxc3 {[%emt 0:00:25]} 35. Rxc3 {[%emt 0:00:03]} Rf8 {[%emt 0:01:49]} 36. Kg2 {[%emt 0:01:19]} h5 {[%emt 0:02:04]} 37. Rb3 {[%emt 0:01:58]} Rf7 {[%emt 0:00:53]} 38. Rb6 {[%emt 0:00:56]} f4 {[%emt 0:03:42]} 39. gxf4 {[%emt 0:01:49]} exf4 {[%emt 0:00:33]} 40. h4 {[%emt 0:00:00]} Ke5 {[%emt 0:00:00]} 41. a5 {[%emt 0:09:53]} Rd7 {[%emt 0:01:48]} 42. b4 {[%emt 0:01:18]} Rf7 {[%emt 0:06:27]} 43. Kf1 {[%emt 0:03:29]} Rd7 {[%emt 0:00:44]} 44. Ke2 {[%emt 0:01:11]} Rf7 {[%emt 0:00:02]} 45. Kd2 {[%emt 0:03:14]} g5 {[%emt 0:08:35]} 46. hxg5 {[%emt 0:00:21]} h4 {[%emt 0:00:37]} 47. Nf6 {[%emt 0:03:50]} Bc7 {[%emt 0:07:51]} 48. Ng4+ {[%emt 0:01:03]} Kd4 {[%emt 0:00:01]} 49. Rxb7 {[%emt 0:01:07]} h3 {[%emt 0:05:18]} 50. Ke2 {[%emt 0:02:16]} Rh7 {[%emt 0:02:14]} 51. Nh2 {[%emt 0:00:39]} Rg7 {[%emt 0:00:55]} 52. Ng4 {[%emt 0:02:07]} Rh7 {[%emt 0:03:20]} 53. g6 {[%emt 0:01:08]} h2 {[%emt 0:02:41]} 54. Nf2 {[%emt 0:00:41]} Rd7 {[%emt 0:01:22]} 55. b5 {[%emt 0:01:03]} Kc3 {[%emt 0:01:27]} 56. Kf1 {[%emt 0:00:24]} Kc4 {[%emt 0:02:37]} 57. bxa6 {[%emt 0:01:12]} Rd2 {[%emt 0:05:12]} 58. Rxc7+ {[%emt 0:00:13]} Kd4 {[%emt 0:00:27]} 59. Rd7+ {[%emt 0:00:23]} Ke3 {[%emt 0:00:23]} 60. Rxd2 {[%emt 0:00:09]} 1-0

[Event "Azerbaijan-ch 1st League 2025"]
[Site "Baku"]
[Date "2025.01.11"]
[Round "6.6"]
[White "Rustamov, Rustam"]
[Black "Alizada, Pasham"]
[Result "1/2-1/2"]
[Annotator "RC"]
[ECO "C04"]
[WhiteElo "2305"]
[BlackElo "2117"]
[PlyCount "156"]
[EventDate "2025.01.05"]
[EventType "swiss"]
[EventCountry "AZE"]
[SourceTitle "playchess.com"]
[Source "ChessBase"]
[SourceQuality "1"]
[TimeControl "40/5400+30:1800+30"]

1. e4 {[%emt 0:00:13]} e6 {[%emt 0:00:01]} 2. d4 {[%emt 0:00:45]} d5 {[%emt 0:00:43]} 3. Nd2 {[%emt 0:01:48]} Nc6 {[%emt 0:01:40]} 4. Ngf3 {[%emt 0:00:21]} Nf6 {[%emt 0:00:14]} 5. e5 {[%emt 0:00:16]} Nd7 {[%emt 0:00:04]} 6. c3 {[%emt 0:01:03]} f6 {[%emt 0:00:07]} 7. Bb5 {[%emt 0:00:04]} Be7 {[%emt 0:05:24]} 8. exf6 {[%emt 0:02:59]} Bxf6 {[%emt 0:01:18]} 9. O-O {[%emt 0:02:45]} O-O {[%emt 0:03:31]} 10. Re1 {[%emt 0:00:15]} Re8 {[%emt 0:01:33]} 11. Nb3 {[%emt 0:00:47]} e5 {[%emt 0:10:51]} 12. Bxc6 {[%emt 0:01:56]} bxc6 {[%emt 0:00:39]} 13. Na5 {[%emt 0:00:08]} Re6 {[%emt 0:09:19]} 14. dxe5 {[%emt 0:03:06]} Nxe5 {[%emt 0:02:45]} 15. Nd4 {[%emt 0:06:49]} Re8 {[%emt 0:02:32]} 16. Bf4 {[%emt 0:00:44]} Ng6 {[%emt 0:12:04]} 17. Ndxc6 {[%emt 0:02:36]} Rxe1+ {[%emt 0:00:22]} 18. Qxe1 {[%emt 0:00:03]} Qd7 {[%emt 0:00:17]} 19. Be3 {[%emt 0:02:20]} Qf5 {[%emt 0:10:27]} 20. Qd2 {[%emt 0:06:48]} Qh5 {[%emt 0:03:01]} 21. Bd4 {[%emt 0:05:19]} Bg5 {[%emt 0:01:44]} 22. Be3 {[%emt 0:03:36]} Bf6 {[%emt 0:00:06]} 23. f3 {[%emt 0:06:25]} Nh4 {[%emt 0:07:32]} 24. Qf2 {[%emt 0:02:10]} Bd7 {[%emt 0:05:48]} 25. Bf4 {[%emt 0:06:33]} Rf8 {[%emt 0:04:33]} 26. Bg3 {[%emt 0:01:10]} Nf5 {[%emt 0:01:31]} 27. Rd1 {[%emt 0:05:24]} Bg5 {[%emt 0:03:14]} 28. Re1 {[%emt 0:09:40]} Bxc6 {[%emt 0:00:25]} 29. Nxc6 {[%emt 0:00:17]} Qh6 {[%emt 0:00:09]} 30. Qc5 {[%emt 0:01:58]} Be3+ {[%emt 0:00:58]} 31. Rxe3 {[%emt 0:00:12]} Qxe3+ {[%emt 0:00:02]} 32. Qxe3 {[%emt 0:00:28]} Nxe3 {[%emt 0:00:02]} 33. Bxc7 {[%emt 0:00:49]} Re8 {[%emt 0:02:12]} 34. Nxa7 {[%emt 0:01:56]} Nd1 {[%emt 0:02:08]} 35. Bg3 {[%emt 0:01:25]} Nxb2 {[%emt 0:00:11]} 36. Nb5 {[%emt 0:00:31]} Ra8 {[%emt 0:05:19]} 37. Nc7 {[%emt 0:00:46]} Ra5 {[%emt 0:00:03]} 38. h4 {[%emt 0:00:58]} Na4 {[%emt 0:03:30]} 39. Be1 {[%emt 0:01:56]} Rc5 {[%emt 0:00:16]} 40. Na6 {[%emt 0:00:00]} Ra5 {[%emt 0:00:00]} 41. Nc7 {[%emt 0:00:43]} Rc5 {[%emt 0:13:57]} 42. Na6 {[%emt 0:00:35]} Rc4 {[%emt 0:04:16]} 43. Nb4 {[%emt 0:00:17]} Nxc3 {[%emt 0:00:21]} 44. Bxc3 {[%emt 0:00:13]} Rxc3 {[%emt 0:00:01]} 45. Nxd5 {[%emt 0:00:06]} Rc4 {[%emt 0:00:11]} 46. h5 {[%emt 0:01:05]} h6 {[%emt 0:01:29]} 47. g4 {[%emt 0:00:46]} Rd4 {[%emt 0:03:14]} 48. Ne3 {[%emt 0:00:14]} Rd2 {[%emt 0:00:02]} 49. Ng2 {[%emt 0:00:16]} Rxa2 {[%emt 0:01:35]} 50. Kh2 {[%emt 0:00:04]} Ra3 {[%emt 0:00:57]} 51. Kg3 {[%emt 0:00:04]} Kf7 {[%emt 0:00:02]} 52. Nh4 {[%emt 0:00:09]} Kf6 {[%emt 0:00:23]} 53. Kf4 {[%emt 0:00:15]} Ra4+ {[%emt 0:00:13]} 54. Kg3 {[%emt 0:00:06]} Kg5 {[%emt 0:03:02]} 55. Ng6 {[%emt 0:01:24]} Ra3 {[%emt 0:01:11]} 56. Ne7 {[%emt 0:00:09]} Kf6 {[%emt 0:00:12]} 57. Ng6 {[%emt 0:00:14]} Ra4 {[%emt 0:00:03]} 58. Nh4 {[%emt 0:00:10]} Ke5 {[%emt 0:00:56]} 59. Nf5 {[%emt 0:00:07]} Ra7 {[%emt 0:00:28]} 60. Nh4 {[%emt 0:00:14]} Rb7 {[%emt 0:02:04]} 61. Nf5 {[%emt 0:00:09]} Rf7 {[%emt 0:00:46]} 62. Nh4 {[%emt 0:00:25]} Kf6 {[%emt 0:00:48]} 63. Nf5 {[%emt 0:00:09]} Ra7 {[%emt 0:00:13]} 64. Nh4 {[%emt 0:00:08]} Ra1 {[%emt 0:00:40]} 65. Ng6 {[%emt 0:00:20]} Kg5 {[%emt 0:00:27]} 66. Ne7 {[%emt 0:00:18]} Rd1 {[%emt 0:00:49]} 67. Ng8 {[%emt 0:01:55]} Rg1+ {[%emt 0:00:52]} 68. Kf2 {[%emt 0:00:09]} Ra1 {[%emt 0:00:06]} 69. Kg3 {[%emt 0:00:12]} Ra4 {[%emt 0:00:28]} 70. Ne7 {[%emt 0:00:07]} Kf6 {[%emt 0:00:17]} 71. Nf5 {[%emt 0:00:04]} Ra5 {[%emt 0:00:32]} 72. Nh4 {[%emt 0:00:09]} Ke5 {[%emt 0:02:02]} 73. Nf5 {[%emt 0:00:10]} Ra7 {[%emt 0:00:07]} 74. Nh4 {[%emt 0:00:16]} Rf7 {[%emt 0:00:18]} 75. Kf2 {[%emt 0:00:17]} Rb7 {[%emt 0:00:48]} 76. Kg3 {[%emt 0:00:11]} Kf6 {[%emt 0:00:03]} 77. Ng6 {[%emt 0:00:05]} Rb1 {[%emt 0:00:38]} 78. Nh4 {[%emt 0:00:45]} Rh1 {[%emt 0:00:53]} 1/2-1/2

[Event "Azerbaijan-ch 1st League 2025"]
[Site "Baku"]
[Date "2025.01.11"]
[Round "6.7"]
[White "Isbatov, Kanan"]
[Black "Ughuzov, Ravan"]
[Result "1/2-1/2"]
[Annotator "RC"]
[ECO "E01"]
[WhiteElo "1882"]
[BlackElo "2250"]
[PlyCount "83"]
[EventDate "2025.01.05"]
[EventType "swiss"]
[EventCountry "AZE"]
[SourceTitle "playchess.com"]
[Source "ChessBase"]
[SourceQuality "1"]
[TimeControl "40/5400+30:1800+30"]

1. d4 {[%emt 0:00:48]} Nf6 {[%emt 0:00:45]} 2. Nf3 {[%emt 0:00:08]} e6 {[%emt 0:00:33]} 3. c4 {[%emt 0:00:05]} d5 {[%emt 0:00:12]} 4. g3 {[%emt 0:00:09]} Bd6 {[%emt 0:00:06]} 5. Bg2 {[%emt 0:01:22]} h6 {[%emt 0:00:06]} 6. O-O {[%emt 0:00:21]} O-O {[%emt 0:00:03]} 7. Nc3 {[%emt 0:00:13]} Nc6 {[%emt 0:00:07]} 8. b3 {[%emt 0:08:19]} dxc4 {[%emt 0:00:05]} 9. bxc4 {[%emt 0:00:02]} e5 {[%emt 0:00:05]} 10. d5 {[%emt 0:15:15]} Na5 {[%emt 0:00:07]} 11. Nd2 {[%emt 0:04:58]} b6 {[%emt 0:00:01]} 12. Qc2 {[%emt 0:02:13]} Bd7 {[%emt 0:03:49]} 13. Bb2 {[%emt 0:01:45]} Nb7 {[%emt 0:01:32]} 14. a4 {[%emt 0:00:40]} Qe7 {[%emt 0:08:06]} 15. Nb3 {[%emt 0:06:31]} a5 {[%emt 0:01:31]} 16. Nb5 {[%emt 0:00:20]} Bxb5 {[%emt 0:04:01]} 17. cxb5 {[%emt 0:00:02]} Nd7 {[%emt 0:00:39]} 18. Bh3 {[%emt 0:10:21]} Ndc5 {[%emt 0:07:42]} 19. Nd2 {[%emt 0:00:42]} Qg5 {[%emt 0:06:14]} 20. Nc4 {[%emt 0:08:03]} Qh5 {[%emt 0:02:50]} 21. Kg2 {[%emt 0:04:53]} Rae8 {[%emt 0:19:44]} 22. e4 {[%emt 0:00:34]} f6 {[%emt 0:04:38]} 23. Ne3 {[%emt 0:04:42]} Kh8 {[%emt 0:01:36]} 24. Bg4 {[%emt 0:01:30]} Qf7 {[%emt 0:01:09]} 25. h4 {[%emt 0:00:24]} h5 {[%emt 0:03:24]} 26. Bh3 {[%emt 0:00:13]} Nd7 {[%emt 0:02:41]} 27. Be6 {[%emt 0:09:39]} Rxe6 {[%emt 0:00:18]} 28. dxe6 {[%emt 0:00:02]} Qxe6 {[%emt 0:00:01]} 29. Qc4 {[%emt 0:00:23]} Qxc4 {[%emt 0:02:21]} 30. Nxc4 {[%emt 0:00:01]} Ndc5 {[%emt 0:00:07]} 31. f3 {[%emt 0:01:27]} Kg8 {[%emt 0:03:02]} 32. Ba3 {[%emt 0:11:32]} Kf7 {[%emt 0:00:22]} 33. Ra2 {[%emt 0:01:03]} Ke6 {[%emt 0:00:19]} 34. Nxd6 {[%emt 0:01:42]} cxd6 {[%emt 0:00:17]} 35. Rc1 {[%emt 0:03:26]} g6 {[%emt 0:01:06]} 36. Rc4 {[%emt 0:00:40]} f5 {[%emt 0:01:13]} 37. Rd2 {[%emt 0:00:36]} Rf7 {[%emt 0:00:18]} 38. Rd1 {[%emt 0:00:21]} Rd7 {[%emt 0:00:23]} 39. Rdc1 {[%emt 0:04:00]} Rg7 {[%emt 0:00:57]} 40. Rd1 {[%emt 0:00:00]} Rd7 {[%emt 0:00:00]} 41. Rdc1 {[%emt 0:10:33]} Rf7 {[%emt 0:10:40]} 42. Rd1 {[%emt 0:00:27]} 1/2-1/2

[Event "Azerbaijan-ch 1st League 2025"]
[Site "Baku"]
[Date "2025.01.11"]
[Round "6.8"]
[White "Gurbanov, Ismayil"]
[Black "Abdulkarimli, Eljan"]
[Result "1-0"]
[Annotator "RC"]
[ECO "B12"]
[WhiteElo "2248"]
[BlackElo "2163"]
[PlyCount "65"]
[EventDate "2025.01.05"]
[EventType "swiss"]
[EventCountry "AZE"]
[SourceTitle "playchess.com"]
[Source "ChessBase"]
[SourceQuality "1"]
[TimeControl "40/5400+30:1800+30"]

1. e4 {[%emt 0:11:49]} c6 {[%emt 0:00:39]} 2. d4 {[%emt 0:00:31]} d5 {[%emt 0:00:37]} 3. f3 {[%emt 0:03:50]} Qb6 {[%emt 0:05:05]} 4. a4 {[%emt 0:14:46]} a5 {[%emt 0:01:33]} 5. exd5 {[%emt 0:10:49]} cxd5 {[%emt 0:00:38]} 6. Nc3 {[%emt 0:00:02]} e6 {[%emt 0:20:50]} 7. Nb5 {[%emt 0:00:44]} Nc6 {[%emt 0:10:06]} 8. Bf4 {[%emt 0:06:10]} e5 {[%emt 0:00:33]} 9. Qe2 {[%emt 0:00:10]} Be6 {[%emt 0:02:39]} 10. Bxe5 {[%emt 0:00:03]} Nxe5 {[%emt 0:03:39]} 11. Qxe5 {[%emt 0:00:13]} Rc8 {[%emt 0:00:29]} 12. Bd3 {[%emt 0:00:37]} f6 {[%emt 0:03:40]} 13. Qg3 {[%emt 0:01:07]} Kf7 {[%emt 0:03:16]} 14. Ne2 {[%emt 0:00:09]} Nh6 {[%emt 0:00:30]} 15. O-O {[%emt 0:00:46]} Nf5 {[%emt 0:03:07]} 16. Qf2 {[%emt 0:04:26]} g5 {[%emt 0:08:38]} 17. Rae1 {[%emt 0:04:03]} h5 {[%emt 0:02:47]} 18. Nec3 {[%emt 0:07:23]} Rd8 {[%emt 0:04:35]} 19. Re2 {[%emt 0:01:25]} Bh6 {[%emt 0:05:58]} 20. Rfe1 {[%emt 0:00:12]} Bc8 {[%emt 0:00:26]} 21. g4 {[%emt 0:02:34]} Nh4 {[%emt 0:02:55]} 22. Nxd5 {[%emt 0:02:07]} Qc6 {[%emt 0:06:54]} 23. Re7+ {[%emt 0:00:01]} Kf8 {[%emt 0:03:32]} 24. Qe3 {[%emt 0:00:01]} Bd7 {[%emt 0:07:58]} 25. Rf7+ {[%emt 0:00:02]} Kxf7 {[%emt 0:00:52]} 26. Qe7+ {[%emt 0:00:03]} Kg8 {[%emt 0:00:10]} 27. Qxd8+ {[%emt 0:00:33]} Bf8 {[%emt 0:00:19]} 28. Ne7+ {[%emt 0:00:11]} Kg7 {[%emt 0:00:30]} 29. Nxc6 {[%emt 0:00:12]} Nxf3+ {[%emt 0:00:18]} 30. Kf2 {[%emt 0:00:10]} Bxc6 {[%emt 0:00:02]} 31. Re7+ {[%emt 0:00:10]} Kh6 {[%emt 0:01:18]} 32. Qxf8+ {[%emt 0:00:06]} Rxf8 {[%emt 0:00:03]} 33. Rh7# {[%emt 0:00:05]} 1-0

[Event "Azerbaijan-ch 1st League 2025"]
[Site "Baku"]
[Date "2025.01.11"]
[Round "6.9"]
[White "Davudov, Tunar"]
[Black "Isfandiyarli, Kamal"]
[Result "1-0"]
[Annotator "RC"]
[ECO "A39"]
[WhiteElo "2225"]
[BlackElo "2027"]
[PlyCount "73"]
[EventDate "2025.01.05"]
[EventType "swiss"]
[EventCountry "AZE"]
[SourceTitle "playchess.com"]
[Source "ChessBase"]
[SourceQuality "1"]
[TimeControl "40/5400+30:1800+30"]

1. Nf3 {[%emt 0:00:02]} c5 {[%emt 0:03:07]} 2. c4 {[%emt 0:01:17]} Nc6 {[%emt 0:01:17]} 3. Nc3 {[%emt 0:01:23]} g6 {[%emt 0:00:21]} 4. g3 {[%emt 0:01:19]} Bg7 {[%emt 0:00:21]} 5. Bg2 {[%emt 0:00:22]} Nf6 {[%emt 0:01:24]} 6. O-O {[%emt 0:00:50]} O-O {[%emt 0:00:04]} 7. d4 {[%emt 0:05:18]} cxd4 {[%emt 0:04:19]} 8. Nxd4 {[%emt 0:00:15]} Nxd4 {[%emt 0:00:14]} 9. Qxd4 {[%emt 0:00:07]} d6 {[%emt 0:00:13]} 10. Qd2 {[%emt 0:03:59]} Rb8 {[%emt 0:08:00]} 11. b3 {[%emt 0:15:50]} Bd7 {[%emt 0:00:45]} 12. Bb2 {[%emt 0:01:47]} Bc6 {[%emt 0:17:24]} 13. e4 {[%emt 0:03:31]} Ne8 {[%emt 0:04:29]} 14. Rad1 {[%emt 0:05:09]} Nc7 {[%emt 0:01:31]} 15. Ne2 {[%emt 0:01:59]} Bxb2 {[%emt 0:01:10]} 16. Qxb2 {[%emt 0:00:06]} Qc8 {[%emt 0:04:11]} 17. Qc1 {[%emt 0:11:21]} Ne6 {[%emt 0:00:52]} 18. f4 {[%emt 0:14:15]} f5 {[%emt 0:07:25]} 19. Nc3 {[%emt 0:05:04]} Bxe4 {[%emt 0:06:20]} 20. Nxe4 {[%emt 0:02:13]} fxe4 {[%emt 0:00:12]} 21. Bxe4 {[%emt 0:00:05]} Ng7 {[%emt 0:04:53]} 22. Qe3 {[%emt 0:01:38]} b5 {[%emt 0:01:05]} 23. cxb5 {[%emt 0:01:18]} Rxb5 {[%emt 0:00:19]} 24. Qxa7 {[%emt 0:00:25]} e6 {[%emt 0:08:48]} 25. Rxd6 {[%emt 0:02:41]} Nh5 {[%emt 0:00:18]} 26. Bd3 {[%emt 0:02:30]} Rd5 {[%emt 0:01:22]} 27. Rxd5 {[%emt 0:00:24]} exd5 {[%emt 0:00:02]} 28. Qd4 {[%emt 0:00:24]} Qa8 {[%emt 0:00:18]} 29. a4 {[%emt 0:00:47]} Re8 {[%emt 0:00:17]} 30. Rd1 {[%emt 0:00:56]} Ng7 {[%emt 0:00:09]} 31. Bb5 {[%emt 0:00:21]} Rd8 {[%emt 0:00:19]} 32. Bc4 {[%emt 0:00:25]} Qa5 {[%emt 0:01:44]} 33. Bxd5+ {[%emt 0:00:55]} Kh8 {[%emt 0:00:06]} 34. b4 {[%emt 0:03:09]} Qc7 {[%emt 0:02:50]} 35. a5 {[%emt 0:00:31]} h5 {[%emt 0:00:15]} 36. a6 {[%emt 0:00:11]} Kh7 {[%emt 0:00:06]} 37. Qc5 {[%emt 0:01:14]} 1-0

[Event "Azerbaijan-ch 1st League 2025"]
[Site "Baku"]
[Date "2025.01.11"]
[Round "6.10"]
[White "Idrisov, Tabriz"]
[Black "Hajialiyev, Islam"]
[Result "1/2-1/2"]
[Annotator "RC"]
[ECO "E11"]
[WhiteElo "2073"]
[BlackElo "2217"]
[PlyCount "248"]
[EventDate "2025.01.05"]
[EventType "swiss"]
[EventCountry "AZE"]
[SourceTitle "playchess.com"]
[Source "ChessBase"]
[SourceQuality "1"]
[TimeControl "40/5400+30:1800+30"]

1. Nf3 {[%emt 0:01:32]} Nf6 {[%emt 0:00:50]} 2. d4 {[%emt 0:00:09]} e6 {[%emt 0:00:07]} 3. c4 {[%emt 0:00:24]} Bb4+ {[%emt 0:01:15]} 4. Bd2 {[%emt 0:03:01]} Bxd2+ {[%emt 0:00:11]} 5. Nbxd2 {[%emt 0:00:13]} d5 {[%emt 0:00:09]} 6. e3 {[%emt 0:01:36]} O-O {[%emt 0:00:09]} 7. Rc1 {[%emt 0:01:18]} c6 {[%emt 0:00:28]} 8. Be2 {[%emt 0:00:47]} Nbd7 {[%emt 0:00:30]} 9. O-O {[%emt 0:05:52]} Qe7 {[%emt 0:00:11]} 10. Qc2 {[%emt 0:06:40]} e5 {[%emt 0:01:50]} 11. cxd5 {[%emt 0:05:29]} Nxd5 {[%emt 0:00:22]} 12. dxe5 {[%emt 0:07:21]} Nxe5 {[%emt 0:00:02]} 13. Nxe5 {[%emt 0:00:12]} Qxe5 {[%emt 0:00:02]} 14. Nc4 {[%emt 0:00:12]} Qf6 {[%emt 0:01:35]} 15. a3 {[%emt 0:03:38]} Be6 {[%emt 0:01:34]} 16. Na5 {[%emt 0:02:29]} Qe7 {[%emt 0:02:34]} 17. b4 {[%emt 0:05:12]} Rfd8 {[%emt 0:06:51]} 18. Rfd1 {[%emt 0:00:09]} Rd7 {[%emt 0:03:07]} 19. Nb3 {[%emt 0:04:40]} Nf6 {[%emt 0:08:16]} 20. Nc5 {[%emt 0:01:41]} Rxd1+ {[%emt 0:01:31]} 21. Rxd1 {[%emt 0:00:13]} Bd5 {[%emt 0:00:41]} 22. Rd4 {[%emt 0:04:34]} Re8 {[%emt 0:18:17]} 23. Bd3 {[%emt 0:06:18]} b6 {[%emt 0:03:38]} 24. Na4 {[%emt 0:01:12]} Qe5 {[%emt 0:06:30]} 25. Nc3 {[%emt 0:07:16]} Be6 {[%emt 0:03:38]} 26. h3 {[%emt 0:14:12]} g6 {[%emt 0:09:29]} 27. Be2 {[%emt 0:05:59]} c5 {[%emt 0:00:50]} 28. bxc5 {[%emt 0:00:46]} Qxc5 {[%emt 0:00:24]} 29. Qb2 {[%emt 0:01:40]} Rc8 {[%emt 0:00:30]} 30. Nb5 {[%emt 0:01:50]} Qc1+ {[%emt 0:00:43]} 31. Qxc1 {[%emt 0:00:06]} Rxc1+ {[%emt 0:00:03]} 32. Rd1 {[%emt 0:02:53]} Rc2 {[%emt 0:01:00]} 33. Bd3 {[%emt 0:00:35]} Ra2 {[%emt 0:01:20]} 34. Nxa7 {[%emt 0:00:10]} Rxa3 {[%emt 0:00:16]} 35. Nb5 {[%emt 0:00:03]} Ra2 {[%emt 0:00:19]} 36. Nd4 {[%emt 0:00:10]} Bd5 {[%emt 0:02:26]} 37. Rb1 {[%emt 0:00:21]} Nd7 {[%emt 0:00:58]} 38. Rb5 {[%emt 0:01:44]} Bb7 {[%emt 0:02:34]} 39. Rb1 {[%emt 0:00:27]} Kf8 {[%emt 0:01:34]} 40. Bb5 {[%emt 0:00:00]} Be4 {[%emt 0:00:00]} 41. Rb4 {[%emt 0:02:42]} Nc5 {[%emt 0:02:45]} 42. Be2 {[%emt 0:05:14]} Bd3 {[%emt 0:04:29]} 43. Bxd3 {[%emt 0:05:06]} Nxd3 {[%emt 0:00:59]} 44. Rxb6 {[%emt 0:00:14]} Ra1+ {[%emt 0:00:22]} 45. Kh2 {[%emt 0:00:07]} Nxf2 {[%emt 0:00:16]} 46. Kg3 {[%emt 0:00:44]} Nd3 {[%emt 0:01:40]} 47. Rb3 {[%emt 0:00:36]} Nc5 {[%emt 0:00:25]} 48. Rb5 {[%emt 0:00:22]} Ne4+ {[%emt 0:04:02]} 49. Kf4 {[%emt 0:00:24]} Nd6 {[%emt 0:00:36]} 50. Rb6 {[%emt 0:01:19]} Rf1+ {[%emt 0:01:32]} 51. Nf3 {[%emt 0:01:14]} Ke7 {[%emt 0:00:25]} 52. Rb2 {[%emt 0:06:16]} f6 {[%emt 0:04:46]} 53. Ra2 {[%emt 0:00:37]} h6 {[%emt 0:02:25]} 54. Re2 {[%emt 0:04:36]} f5 {[%emt 0:02:31]} 55. Ke5 {[%emt 0:01:44]} Ra1 {[%emt 0:03:19]} 56. Rc2 {[%emt 0:02:39]} Ra5+ {[%emt 0:00:38]} 57. Kf4 {[%emt 0:00:23]} g5+ {[%emt 0:14:43]} 58. Kg3 {[%emt 0:12:09]} Ne4+ {[%emt 0:00:13]} 59. Kh2 {[%emt 0:00:00]} h5 {[%emt 0:03:56]} 60. Nd4 {[%emt 0:00:00]} Kd7 {[%emt 0:00:53]} 61. Rc4 {[%emt 0:00:00]} Nd6 {[%emt 0:02:53]} 62. Rc3 {[%emt 0:00:00]} h4 {[%emt 0:01:08]} 63. Rd3 {[%emt 0:00:00]} Rd5 {[%emt 0:02:31]} 64. Nb3 {[%emt 0:00:00]} Rb5 {[%emt 0:01:11]} 65. Nd4 {[%emt 0:00:29]} Rd5 {[%emt 0:01:35]} 66. Nf3 {[%emt 0:00:19]} Rxd3 {[%emt 0:00:16]} 67. Ne5+ {[%emt 0:00:02]} Ke6 {[%emt 0:00:00]} 68. Nxd3 {[%emt 0:00:06]} Kd5 {[%emt 0:00:09]} 69. Nf2 {[%emt 0:01:15]} Nc4 {[%emt 0:00:47]} 70. g4 {[%emt 0:01:03]} fxg4 {[%emt 0:01:06]} 71. Nxg4 {[%emt 0:01:42]} Ke4 {[%emt 0:00:05]} 72. Nh6 {[%emt 0:00:30]} Ne5 {[%emt 0:00:57]} 73. Kg2 {[%emt 0:00:33]} Kxe3 {[%emt 0:00:01]} 74. Ng8 {[%emt 0:00:13]} Nd3 {[%emt 0:01:29]} 75. Ne7 {[%emt 0:00:58]} Ne1+ {[%emt 0:00:25]} 76. Kf1 {[%emt 0:00:41]} Nd3 {[%emt 0:00:42]} 77. Kg2 {[%emt 0:00:07]} Ke2 {[%emt 0:01:13]} 78. Nf5 {[%emt 0:00:30]} Ne1+ {[%emt 0:00:47]} 79. Kg1 {[%emt 0:01:23]} Kf3 {[%emt 0:00:40]} 80. Kf1 {[%emt 0:00:30]} Nc2 {[%emt 0:02:11]} 81. Kg1 {[%emt 0:00:22]} Kf4 {[%emt 0:02:12]} 82. Nd6 {[%emt 0:00:01]} Ne1 {[%emt 0:00:56]} 83. Kf2 {[%emt 0:00:17]} Nd3+ {[%emt 0:00:01]} 84. Kg2 {[%emt 0:00:03]} Ke3 {[%emt 0:00:51]} 85. Nf5+ {[%emt 0:00:16]} Ke4 {[%emt 0:00:17]} 86. Nd6+ {[%emt 0:00:03]} Kf4 {[%emt 0:00:07]} 87. Nf7 {[%emt 0:00:11]} Ne1+ {[%emt 0:00:30]} 88. Kf2 {[%emt 0:00:08]} Nf3 {[%emt 0:00:05]} 89. Kg2 {[%emt 0:00:50]} Ne5 {[%emt 0:00:31]} 90. Nxe5 {[%emt 0:00:30]} Kxe5 {[%emt 0:00:01]} 91. Kf1 {[%emt 0:00:07]} Kf5 {[%emt 0:00:10]} 92. Ke1 {[%emt 0:01:19]} Ke5 {[%emt 0:00:08]} 93. Kf1 {[%emt 0:00:16]} Kd4 {[%emt 0:01:00]} 94. Kf2 {[%emt 0:00:18]} Kd5 {[%emt 0:00:06]} 95. Kf3 {[%emt 0:00:39]} Ke6 {[%emt 0:00:09]} 96. Ke2 {[%emt 0:00:11]} Kf6 {[%emt 0:00:06]} 97. Kf2 {[%emt 0:00:06]} Ke6 {[%emt 0:00:08]} 98. Ke2 {[%emt 0:00:06]} Kd6 {[%emt 0:00:07]} 99. Kf2 {[%emt 0:00:23]} Kd5 {[%emt 0:00:15]} 100. Kf3 {[%emt 0:00:09]} Ke5 {[%emt 0:00:02]} 101. Ke3 {[%emt 0:00:08]} Kd6 {[%emt 0:00:08]} 102. Kf2 {[%emt 0:00:38]} Kd5 {[%emt 0:00:28]} 103. Kf3 {[%emt 0:00:06]} Ke5 {[%emt 0:00:03]} 104. Ke3 {[%emt 0:00:04]} Kd6 {[%emt 0:00:15]} 105. Kf3 {[%emt 0:00:14]} Ke6 {[%emt 0:00:04]} 106. Ke2 {[%emt 0:00:05]} Kf6 {[%emt 0:00:05]} 107. Kf2 {[%emt 0:00:05]} Kg6 {[%emt 0:00:03]} 108. Kg2 {[%emt 0:00:31]} Kf5 {[%emt 0:00:22]} 109. Kf3 {[%emt 0:00:03]} Ke5 {[%emt 0:00:04]} 110. Ke3 {[%emt 0:00:04]} Kd5 {[%emt 0:00:04]} 111. Kf3 {[%emt 0:00:11]} Ke5 {[%emt 0:00:20]} 112. Ke3 {[%emt 0:00:01]} Kf6 {[%emt 0:00:07]} 113. Kf2 {[%emt 0:00:04]} Ke7 {[%emt 0:00:07]} 114. Ke1 {[%emt 0:00:36]} Kd6 {[%emt 0:00:06]} 115. Kf2 {[%emt 0:00:17]} Kd5 {[%emt 0:00:09]} 116. Kf3 {[%emt 0:00:04]} Ke5 {[%emt 0:00:05]} 117. Ke3 {[%emt 0:00:03]} Kf5 {[%emt 0:00:05]} 118. Kf3 {[%emt 0:00:04]} g4+ {[%emt 0:00:05]} 119. hxg4+ {[%emt 0:00:03]} Kg5 {[%emt 0:00:03]} 120. Kg2 {[%emt 0:00:04]} Kxg4 {[%emt 0:00:03]} 121. Kh2 {[%emt 0:00:05]} h3 {[%emt 0:00:04]} 122. Kh1 {[%emt 0:00:25]} Kg3 {[%emt 0:00:02]} 123. Kg1 {[%emt 0:00:07]} h2+ {[%emt 0:00:31]} 124. Kh1 {[%emt 0:01:07]} Kh3 {[%emt 0:00:06]} 1/2-1/2